fUST/lending_fUST_20260512
["ID","MTS","AMOUNT","RATE_DAILY","PERIOD"]
[422042542,1778527841000,-265.62882792,0.0001,2]
[422042541,1778527841000,-167.0,0.0001,2]
[422042548,1778527841000,-156.0,0.0001,2]
[422042544,1778527841000,-166.0,0.0001,2]
[422042543,1778527841000,-166.0,0.0001,2]
[422042547,1778527841000,-172.0,0.0001,2]
[422042546,1778527841000,-166.0,0.0001,2]
[422042574,1778527841000,-384.67255805,0.0001,2]
[422042549,1778527841000,-156.0,0.0001,2]
[422042571,1778527841000,-650.0,0.0001,2]
[422042567,1778527841000,-650.0,0.0001,2]
[422042566,1778527841000,-650.0,0.0001,2]
[422042562,1778527841000,-650.0,0.0001,2]
[422042614,1778527841000,-159.22565296,0.0001,2]
[422042610,1778527841000,-156.0,0.0001,2]
[422042612,1778527841000,-156.0,0.0001,2]
[422042608,1778527841000,-166.0,0.0001,2]
[422042604,1778527841000,-166.0,0.0001,2]
[422042600,1778527841000,-173.05296249,0.0001,2]
[422042602,1778527841000,-622.0,0.0001,2]
[422042596,1778527841000,-500.0,9e-05,2]
[422042598,1778527841000,-500.0,9e-05,2]
[422042594,1778527841000,-500.0,9e-05,2]
[422042606,1778527841000,-166.0,0.0001,2]
[422042582,1778527841000,-650.0,0.0001,2]
[422042581,1778527841000,-650.0,0.0001,2]
[422042577,1778527841000,-650.0,0.0001,2]
[422042579,1778527841000,-650.0,0.0001,2]
[422042564,1778527841000,-650.0,0.0001,2]
[422042575,1778527841000,-265.32744195,0.0001,2]
[422042576,1778527841000,-650.0,0.0001,2]
[422042569,1778527841000,-650.0,0.0001,2]
[422042570,1778527841000,-650.0,0.0001,2]
[422042568,1778527841000,-650.0,0.0001,2]
[422042565,1778527841000,-650.0,0.0001,2]
[422042583,1778527841000,-476.94703751,0.0001,2]
[422042713,1778527842000,-456.3999724,0.00010115,2]
[422042699,1778527842000,-2201.0,0.00010016,2]
[422042682,1778527842000,-153.57428312,0.0001,2]
[422042686,1778527842000,-167.0,0.0001,2]
[422042662,1778527842000,-650.0,0.0001,2]
[422042695,1778527842000,-5000.0,0.0001,2]
[422042684,1778527842000,-167.0,0.0001,2]
[422042681,1778527842000,-650.0,0.0001,2]
[422042703,1778527842000,-647.0,0.00010016,2]
[422042694,1778527842000,-5000.0,0.0001,2]
[422042697,1778527842000,-862.28603014,0.00010016,2]
[422042725,1778527842000,-325.805033,0.00010115,2]
[422042701,1778527842000,-1412.0,0.00010016,2]
[422042690,1778527842000,-237.65721298,0.0001,2]
[422042692,1778527842000,-5000.0,0.0001,2]
[422042705,1778527842000,-741.0,0.00010016,2]
[422042707,1778527842000,-185.0,0.00010016,2]
[422042709,1778527842000,-443.0,0.00010016,2]
[422042719,1778527842000,-456.3999724,0.00010115,2]
[422042711,1778527842000,-894.19061326,0.00010071,2]
[422042715,1778527842000,-151.0,0.00010115,2]
[422042721,1778527842000,-151.0,0.00010115,2]
[422042677,1778527842000,-650.0,0.0001,2]
[422042688,1778527842000,-167.0,0.0001,2]
[422042660,1778527842000,-269.63694649,0.0001,2]
[422042632,1778527842000,-650.0,0.0001,2]
[422042674,1778527842000,-650.0,0.0001,2]
[422042619,1778527842000,-166.0,0.0001,2]
[422042623,1778527842000,-166.0,0.0001,2]
[422042621,1778527842000,-650.0,0.0001,2]
[422042627,1778527842000,-650.0,0.0001,2]
[422042625,1778527842000,-166.0,0.0001,2]
[422042629,1778527842000,-278.61022012,0.0001,2]
[422042631,1778527842000,-650.0,0.0001,2]
[422042616,1778527842000,-650.0,0.0001,2]
[422042617,1778527842000,-650.0,0.0001,2]
[422042642,1778527842000,-650.0,0.0001,2]
[422042644,1778527842000,-502.01589723,0.0001,2]
[422042678,1778527842000,-650.0,0.0001,2]
[422042652,1778527842000,-650.0,0.0001,2]
[422042650,1778527842000,-650.0,0.0001,2]
[422042634,1778527842000,-149.59589723,0.0001,2]
[422042636,1778527842000,-500.40410277,0.0001,2]
[422042638,1778527842000,-650.0,0.0001,2]
[422042665,1778527842000,-650.0,0.0001,2]
[422042668,1778527842000,-650.0,0.0001,2]
[422042654,1778527842000,-650.0,0.0001,2]
[422042656,1778527842000,-650.0,0.0001,2]
[422042670,1778527842000,-650.0,0.0001,2]
[422042658,1778527842000,-380.36305351,0.0001,2]
[422042672,1778527842000,-650.0,0.0001,2]
[422042648,1778527842000,-147.98410277,0.0001,2]
[422042727,1778527842000,-160.0,0.00010117,2]
[422042756,1778527842000,-456.3275979,0.00010122,2]
[422042723,1778527842000,-325.805033,0.00010115,2]
[422042785,1778527842000,-578.20924308,0.00010397,2]
[422042796,1778527842000,-2028.96928536,0.000105,2]
[422042788,1778527842000,-155.0,0.00010499,2]
[422042801,1778527842000,-4016.3331708,0.000105,2]
[422042797,1778527842000,-2233.28833797,0.000105,2]
[422042786,1778527842000,-500.0,0.00010424,2]
[422042799,1778527842000,-3635.83170984,0.000105,2]
[422042790,1778527842000,-838.03231826,0.000105,2]
[422042794,1778527842000,-1853.63726473,0.000105,2]
[422042792,1778527842000,-2043.4628013,0.000105,2]
[422042803,1778527842000,-4028.56391992,0.000105,2]
[422042783,1778527842000,-720.0,0.0001039,2]
[422042805,1778527842000,-1648.10969512,0.000105,2]
[422042820,1778527842000,-2001.62241176,0.000105,2]
[422042822,1778527842000,-1478.26004546,0.000105,2]
[422042824,1778527842000,-313.2825735,0.000105,2]
[422042828,1778527842000,-852.65387274,0.000105,2]
[422042811,1778527842000,-671.77936835,0.000105,2]
[422042830,1778527842000,-2256.94567339,0.000105,2]
[422042816,1778527842000,-2135.44126027,0.000105,2]
[422042818,1778527842000,-808.62305992,0.000105,2]
[422042813,1778527842000,-703.674,0.000105,2]
[422042832,1778527842000,-535.96907222,0.000105,2]
[422042717,1778527842000,-151.0,0.00010115,2]
[422042807,1778527842000,-885.94000322,0.000105,2]
[422042781,1778527842000,-997.16350561,0.00010236,2]
[422042826,1778527842000,-2127.03091916,0.000105,2]
[422042776,1778527842000,-250.0,0.0001021,2]
[422042775,1778527842000,-150.358,0.0001021,2]
[422042731,1778527842000,-160.0,0.00010117,2]
[422042729,1778527842000,-161.621689,0.00010117,2]
[422042733,1778527842000,-160.0,0.00010117,2]
[422042736,1778527842000,-325.805033,0.00010119,2]
[422042740,1778527842000,-456.3999724,0.00010122,2]
[422042738,1778527842000,-456.3999724,0.00010122,2]
[422042742,1778527842000,-325.8289405,0.00010122,2]
[422042754,1778527842000,-151.0,0.00010122,2]
[422042746,1778527842000,-456.3999724,0.00010122,2]
[422042758,1778527842000,-325.805033,0.00010122,2]
[422042750,1778527842000,-151.0,0.00010122,2]
[422042734,1778527842000,-151.0,0.00010119,2]
[422042748,1778527842000,-151.0,0.00010122,2]
[422042771,1778527842000,-213.324,0.0001018,2]
[422042752,1778527842000,-386.8664846,0.00010122,2]
[422042773,1778527842000,-961.58486559,0.00010181,2]
[422042762,1778527842000,-325.805033,0.00010122,2]
[422042767,1778527842000,-500.0,0.0001015,2]
[422042779,1778527842000,-150.152,0.0001021,2]
[422042769,1778527842000,-153.706,0.0001018,2]
[422042763,1778527842000,-325.8289405,0.00010122,2]
[422042760,1778527842000,-325.805033,0.00010122,2]
[422042745,1778527842000,-151.0,0.00010122,2]
[422042765,1778527842000,-927.27566595,0.00010126,2]
[422043008,1778527844000,-407.67405268,8.854e-05,2]
[422043010,1778527844000,-485.7107963,8.854e-05,2]
[422042980,1778527844000,-632.9392037,8.854e-05,2]
[422042978,1778527844000,-446.0,8.854e-05,2]
[422043152,1778527847000,-175.50392317,0.000105,2]
[422043153,1778527847000,-225.38597784,0.000105,2]
[422043157,1778527847000,-231.68218279,0.000105,2]
[422043159,1778527847000,-150.13960807,0.000105,2]
[422043171,1778527847000,-362.61214848,0.00010602,2]
[422043169,1778527847000,-525.24617725,0.0001057,2]
[422043163,1778527847000,-151.0,0.000105,2]
[422043177,1778527847000,-2000.0,0.0001067,2]
[422043175,1778527847000,-2000.0,0.0001067,2]
[422043161,1778527847000,-150.36479064,0.000105,2]
[422043165,1778527847000,-500.0,0.0001057,2]
[422043167,1778527847000,-500.0,0.0001057,2]
[422043155,1778527847000,-216.45282589,0.000105,2]
[422043173,1778527847000,-429.2484963,0.00010618,2]
[422043142,1778527847000,-500.0,9e-05,2]
[422043121,1778527847000,-5173.46939032,8.854e-05,2]
[422043146,1778527847000,-5000.0,0.0001,2]
[422043181,1778527847000,-2000.0,0.0001067,2]
[422043130,1778527847000,-1759.76309404,8.854e-05,2]
[422043123,1778527847000,-1360.29392899,8.854e-05,2]
[422043126,1778527847000,-494.293216,8.854e-05,2]
[422043133,1778527847000,-3390.88728688,8.854e-05,2]
[422043128,1778527847000,-351.92062858,8.854e-05,2]
[422043140,1778527847000,-500.0,9e-05,2]
[422043135,1778527847000,-500.0,9e-05,2]
[422043137,1778527847000,-500.0,9e-05,2]
[422043148,1778527847000,-1581.02915678,0.000105,2]
[422043150,1778527847000,-1893.18550367,0.000105,2]
[422043136,1778527847000,-500.0,9e-05,2]
[422043138,1778527847000,-500.0,9e-05,2]
[422043144,1778527847000,-500.0,9e-05,2]
[422043134,1778527847000,-52039.18267557,8.854e-05,2]
[422043179,1778527847000,-2000.0,0.0001067,2]
[422043223,1778527847000,-2000.0,0.00010712,2]
[422043185,1778527847000,-2000.0,0.0001067,2]
[422043229,1778527847000,-2000.0,0.00010712,2]
[422043213,1778527847000,-500.0,0.00010698,2]
[422043219,1778527847000,-2000.0,0.00010712,2]
[422043217,1778527847000,-2000.0,0.00010712,2]
[422043231,1778527847000,-2000.0,0.00010712,2]
[422043232,1778527847000,-2000.0,0.00010712,2]
[422043215,1778527847000,-2000.0,0.00010712,2]
[422043246,1778527847000,-2000.0,0.00010712,2]
[422043234,1778527847000,-2000.0,0.00010712,2]
[422043183,1778527847000,-2000.0,0.0001067,2]
[422043242,1778527847000,-2000.0,0.00010712,2]
[422043238,1778527847000,-2000.0,0.00010712,2]
[422043240,1778527847000,-2000.0,0.00010712,2]
[422043244,1778527847000,-2000.0,0.00010712,2]
[422043248,1778527847000,-833.0,0.00010712,2]
[422043227,1778527847000,-2000.0,0.00010712,2]
[422043236,1778527847000,-2000.0,0.00010712,2]
[422043225,1778527847000,-2000.0,0.00010712,2]
[422043211,1778527847000,-2000.0,0.0001067,2]
[422043196,1778527847000,-2000.0,0.0001067,2]
[422043198,1778527847000,-2000.0,0.0001067,2]
[422043202,1778527847000,-2000.0,0.0001067,2]
[422043188,1778527847000,-2000.0,0.0001067,2]
[422043192,1778527847000,-2000.0,0.0001067,2]
[422043194,1778527847000,-2000.0,0.0001067,2]
[422043200,1778527847000,-2000.0,0.0001067,2]
[422043187,1778527847000,-2000.0,0.0001067,2]
[422043204,1778527847000,-2000.0,0.0001067,2]
[422043206,1778527847000,-2000.0,0.0001067,2]
[422043207,1778527847000,-2000.0,0.0001067,2]
[422043210,1778527847000,-2000.0,0.0001067,2]
[422043190,1778527847000,-2000.0,0.0001067,2]
[422043221,1778527847000,-2000.0,0.00010712,2]
[422043265,1778527848000,-605.6843,0.00010958,2]
[422043283,1778527848000,-1034.952142,0.00010958,2]
[422043285,1778527848000,-500.0,0.00010958,2]
[422043286,1778527848000,-1049.668449,0.00010958,2]
[422043294,1778527848000,-500.0,0.00010958,2]
[422043288,1778527848000,-500.0,0.00010958,2]
[422043290,1778527848000,-500.0,0.00010958,2]
[422043296,1778527848000,-500.0,0.00010958,2]
[422043262,1778527848000,-846.7779,0.00010958,2]
[422043292,1778527848000,-500.0,0.00010958,2]
[422043260,1778527848000,-151.0,0.00010947,2]
[422043271,1778527848000,-500.0,0.00010958,2]
[422043269,1778527848000,-500.0,0.00010958,2]
[422043267,1778527848000,-500.0,0.00010958,2]
[422043279,1778527848000,-13092.964822,0.00010958,2]
[422043273,1778527848000,-500.0,0.00010958,2]
[422043277,1778527848000,-500.0,0.00010958,2]
[422043275,1778527848000,-500.0,0.00010958,2]
[422043258,1778527848000,-599.60298507,0.00010945,2]
[422043252,1778527848000,-587.0,0.00010832,2]
[422043254,1778527848000,-364.2,0.00010885,2]
[422043250,1778527848000,-7710.06591828,0.00010738,2]
[422043306,1778527848000,-161.35883303,0.00010958,2]
[422043281,1778527848000,-168.204268,0.00010958,2]
[422043300,1778527848000,-500.0,0.00010958,2]
[422043256,1778527848000,-300.0,0.000109,3]
[422043304,1778527848000,-338.64116697,0.00010958,2]
[422043342,1778527848000,-500.0,0.00010958,2]
[422043346,1778527848000,-500.0,0.00010958,2]
[422043338,1778527848000,-500.0,0.00010958,2]
[422043352,1778527848000,-446.09499167,0.00010958,2]
[422043344,1778527848000,-500.0,0.00010958,2]
[422043350,1778527848000,-500.0,0.00010958,2]
[422043340,1778527848000,-500.0,0.00010958,2]
[422043348,1778527848000,-500.0,0.00010958,2]
[422043336,1778527848000,-500.0,0.00010958,2]
[422043334,1778527848000,-500.0,0.00010958,2]
[422043333,1778527848000,-195.90544124,0.00010958,2]
[422043328,1778527848000,-452.7601324,0.00010958,2]
[422043302,1778527848000,-500.0,0.00010958,2]
[422043326,1778527848000,-47.2398676,0.00010958,2]
[422043330,1778527848000,-304.09455876,0.00010958,2]
[422043308,1778527848000,-500.0,0.00010958,2]
[422043310,1778527848000,-500.0,0.00010958,2]
[422043315,1778527848000,-403.9324764,0.00010958,2]
[422043322,1778527848000,-500.0,0.00010958,2]
[422043298,1778527848000,-500.0,0.00010958,2]
[422043317,1778527848000,-500.0,0.00010958,2]
[422043318,1778527848000,-500.0,0.00010958,2]
[422043320,1778527848000,-515.20097264,0.00010958,2]
[422043324,1778527848000,-500.0,0.00010958,2]
[422043312,1778527848000,-96.0675236,0.00010958,2]
[422043471,1778527860000,-53.90500833,9e-05,2]
[422048489,1778529031000,-300.0,8.159e-05,2]
[422048482,1778529031000,-1200.0,7.999e-05,2]
[422048483,1778529031000,-310.57698929,8e-05,2]
[422048480,1778529031000,-300.0,7.999e-05,2]
[422048481,1778529031000,-300.0,7.999e-05,2]
[422048487,1778529031000,-300.0,8.159e-05,2]
[422048486,1778529031000,-300.0,8.159e-05,2]
[422048484,1778529031000,-8915.01840739,8e-05,2]
[422048485,1778529031000,-15652.01276221,8e-05,2]
[422048490,1778529031000,-300.0,8.159e-05,2]
[422048491,1778529031000,-300.0,8.159e-05,2]
[422048492,1778529031000,-300.0,8.159e-05,2]
[422048493,1778529031000,-300.0,8.159e-05,2]
[422048494,1778529031000,-300.0,8.159e-05,2]
[422048495,1778529031000,-300.0,8.159e-05,2]
[422048497,1778529031000,-300.0,8.159e-05,2]
[422048498,1778529031000,-300.0,8.159e-05,2]
[422048496,1778529031000,-300.0,8.159e-05,2]
[422048488,1778529031000,-300.0,8.159e-05,2]
[422048503,1778529032000,-152.0,8.701e-05,7]
[422048507,1778529032000,-152.0,8.806e-05,7]
[422048500,1778529032000,-300.0,8.159e-05,2]
[422048501,1778529032000,-600.0,8.321e-05,2]
[422048505,1778529032000,-71992.39874121,8.754e-05,2]
[422048508,1778529032000,-260.70438357,9e-05,2]
[422048499,1778529032000,-300.0,8.159e-05,2]
[422048502,1778529032000,-3390.88728688,8.654e-05,2]
[422048510,1778529032000,-1286.90383156,9e-05,2]
[422048506,1778529032000,-420.0,8.799e-05,2]
[422048504,1778529032000,-413.51772627,8.753e-05,2]
[422048509,1778529032000,-598.70512035,9e-05,2]
[422048529,1778529037000,-2849.8060003,9e-05,2]
[422048530,1778529038000,-503.8814169,9e-05,2]
[422048600,1778529040000,-4049.27982469,9e-05,2]
[422048596,1778529040000,-654.18108546,9e-05,2]
[422048598,1778529040000,-476.63499167,9e-05,2]
[422048594,1778529040000,-2362.70224106,9e-05,2]
[422048897,1778529043000,-500.0,9.958e-05,2]
[422048898,1778529043000,-500.0,9.958e-05,2]
[422048900,1778529043000,-500.0,9.958e-05,2]
[422048904,1778529043000,-500.0,9.958e-05,2]
[422048905,1778529043000,-500.0,9.958e-05,2]
[422048901,1778529043000,-500.0,9.958e-05,2]
[422048919,1778529043000,-500.0,9.958e-05,2]
[422048917,1778529043000,-500.0,9.958e-05,2]
[422048894,1778529043000,-745.65223616,9.864e-05,2]
[422048906,1778529043000,-500.0,9.958e-05,2]
[422048918,1778529043000,-500.0,9.958e-05,2]
[422048910,1778529043000,-500.0,9.958e-05,2]
[422048916,1778529043000,-500.0,9.958e-05,2]
[422048908,1778529043000,-500.0,9.958e-05,2]
[422048902,1778529043000,-500.0,9.958e-05,2]
[422048903,1778529043000,-500.0,9.958e-05,2]
[422048896,1778529043000,-773.2413689,9.919e-05,2]
[422048874,1778529043000,-37356.83978541,9e-05,2]
[422048876,1778529043000,-720.0,9.153e-05,2]
[422048878,1778529043000,-537.6845,9.369e-05,2]
[422048882,1778529043000,-557.5788265,9.424e-05,2]
[422048886,1778529043000,-599.60298507,9.534e-05,2]
[422048890,1778529043000,-668.65185757,9.699e-05,2]
[422048895,1778529043000,-232.43322828,9.917e-05,2]
[422048887,1778529043000,-621.78829552,9.589e-05,2]
[422048881,1778529043000,-500.0,9.383e-05,2]
[422048884,1778529043000,-578.20924308,9.479e-05,2]
[422048888,1778529043000,-644.79446246,9.644e-05,2]
[422048909,1778529043000,-500.0,9.958e-05,2]
[422048892,1778529043000,-693.3919763,9.754e-05,2]
[422048893,1778529043000,-719.04747942,9.809e-05,2]
[422048880,1778529043000,-537.6845,9.369e-05,2]
[422048889,1778529043000,-587.0,9.679e-05,2]
[422048915,1778529043000,-500.0,9.958e-05,2]
[422048913,1778529043000,-500.0,9.958e-05,2]
[422048935,1778529043000,-370.05760184,9.998e-05,2]
[422048945,1778529043000,-500.0,9.998e-05,2]
[422048941,1778529043000,-500.0,9.998e-05,2]
[422048938,1778529043000,-500.0,9.998e-05,2]
[422048944,1778529043000,-500.0,9.998e-05,2]
[422048940,1778529043000,-500.0,9.998e-05,2]
[422048937,1778529043000,-500.0,9.998e-05,2]
[422048939,1778529043000,-500.0,9.998e-05,2]
[422048942,1778529043000,-500.0,9.998e-05,2]
[422048943,1778529043000,-500.0,9.998e-05,2]
[422048948,1778529043000,-500.0,9.998e-05,2]
[422048947,1778529043000,-500.0,9.998e-05,2]
[422048949,1778529043000,-500.0,9.998e-05,2]
[422048912,1778529043000,-500.0,9.958e-05,2]
[422048946,1778529043000,-500.0,9.998e-05,2]
[422048936,1778529043000,-500.0,9.998e-05,2]
[422048950,1778529043000,-400.26714558,9.998e-05,2]
[422048930,1778529043000,-500.0,9.958e-05,2]
[422048934,1778529043000,-313.77659821,9.975e-05,2]
[422048921,1778529043000,-500.0,9.958e-05,2]
[422048933,1778529043000,-500.0,9.958e-05,2]
[422048931,1778529043000,-553.91,9.958e-05,2]
[422048932,1778529043000,-500.0,9.958e-05,2]
[422048920,1778529043000,-500.0,9.958e-05,2]
[422048914,1778529043000,-500.0,9.958e-05,2]
[422048929,1778529043000,-500.0,9.958e-05,2]
[422048927,1778529043000,-500.0,9.958e-05,2]
[422048922,1778529043000,-500.0,9.958e-05,2]
[422048924,1778529043000,-500.0,9.958e-05,2]
[422048911,1778529043000,-500.0,9.958e-05,2]
[422048928,1778529043000,-500.0,9.958e-05,2]
[422048925,1778529043000,-500.0,9.958e-05,2]
[422048923,1778529043000,-500.0,9.958e-05,2]
[422048980,1778529044000,-178.421918,0.00010958,2]
[422048997,1778529044000,-518.54833351,0.00010958,2]
[422048987,1778529044000,-500.0,0.00010958,2]
[422048991,1778529044000,-500.0,0.00010958,2]
[422048990,1778529044000,-500.0,0.00010958,2]
[422048999,1778529044000,-460.4,0.00010958,2]
[422048995,1778529044000,-500.0,0.00010958,2]
[422048988,1778529044000,-500.0,0.00010958,2]
[422048992,1778529044000,-500.0,0.00010958,2]
[422049000,1778529044000,-500.0,0.00010958,2]
[422048998,1778529044000,-500.0,0.00010958,2]
[422048993,1778529044000,-1669.2454,0.00010958,2]
[422048994,1778529044000,-500.0,0.00010958,2]
[422049007,1778529044000,-504.70810474,0.00010958,2]
[422049002,1778529044000,-500.0,0.00010958,2]
[422049012,1778529044000,-500.0,0.00010958,2]
[422049001,1778529044000,-222.39883053,0.00010958,2]
[422049013,1778529044000,-500.0,0.00010958,2]
[422049003,1778529044000,-500.0,0.00010958,2]
[422049006,1778529044000,-500.0,0.00010958,2]
[422049008,1778529044000,-500.0,0.00010958,2]
[422049010,1778529044000,-500.0,0.00010958,2]
[422049005,1778529044000,-329.96623476,0.00010958,2]
[422049011,1778529044000,-500.0,0.00010958,2]
[422049009,1778529044000,-11222.541276,0.00010958,2]
[422049014,1778529044000,-166.0,0.00010958,2]
[422049016,1778529044000,-164.0,0.00010958,2]
[422048983,1778529044000,-318.530118,0.00010958,2]
[422048996,1778529044000,-500.0,0.00010958,2]
[422048984,1778529044000,-318.530118,0.00010958,2]
[422048960,1778529044000,-160.0,0.00010033,2]
[422048978,1778529044000,-2885.5325169,0.00010913,2]
[422049017,1778529044000,-500.0,0.00010958,2]
[422048958,1778529044000,-160.0,0.00010033,2]
[422048959,1778529044000,-161.621689,0.00010033,2]
[422048953,1778529044000,-8610.0,0.0001,2]
[422048952,1778529044000,-366.48084736,0.0001,2]
[422048955,1778529044000,-5000.0,0.0001,2]
[422048954,1778529044000,-5000.0,0.0001,2]
[422048951,1778529044000,-500.0,9.998e-05,2]
[422048956,1778529044000,-1242.94698059,0.0001,2]
[422048961,1778529044000,-160.0,0.00010033,2]
[422048971,1778529044000,-457.8119781,0.00010201,2]
[422048972,1778529044000,-325.8289405,0.00010201,2]
[422048973,1778529044000,-1101.97787358,0.00010576,2]
[422048962,1778529044000,-864.0,0.00010069,2]
[422048963,1778529044000,-647.0,0.00010112,2]
[422048968,1778529044000,-443.0,0.00010112,2]
[422048966,1778529044000,-741.0,0.00010112,2]
[422048965,1778529044000,-1412.0,0.00010112,2]
[422048969,1778529044000,-327.9088981,0.00010138,2]
[422048967,1778529044000,-185.0,0.00010112,2]
[422048970,1778529044000,-151.0,0.00010201,2]
[422048975,1778529044000,-5140.04394552,0.00010739,2]
[422048985,1778529044000,-500.0,0.00010958,2]
[422048974,1778529044000,-823.0,0.00010647,2]
[422048986,1778529044000,-500.0,0.00010958,2]
[422048977,1778529044000,-291.36,0.00010885,2]
[422048976,1778529044000,-405.73965607,0.000108,2]
[422048979,1778529044000,-167.043972,0.00010958,2]
[422048981,1778529044000,-22297.108271,0.00010958,2]
[422048982,1778529044000,-538.137,0.00010958,2]
[422049022,1778529044000,-500.0,0.00010958,2]
[422049004,1778529044000,-500.0,0.00010958,2]
[422049019,1778529044000,-500.0,0.00010958,2]
[422049054,1778529044000,-500.0,0.00010958,2]
[422049064,1778529044000,-500.0,0.00010958,2]
[422049066,1778529044000,-500.0,0.00010958,2]
[422049061,1778529044000,-500.0,0.00010958,2]
[422049063,1778529044000,-500.0,0.00010958,2]
[422049053,1778529044000,-500.0,0.00010958,2]
[422049055,1778529044000,-500.0,0.00010958,2]
[422049058,1778529044000,-500.0,0.00010958,2]
[422049057,1778529044000,-500.0,0.00010958,2]
[422049065,1778529044000,-500.0,0.00010958,2]
[422049056,1778529044000,-500.0,0.00010958,2]
[422049060,1778529044000,-500.0,0.00010958,2]
[422049059,1778529044000,-889.52,0.00010958,2]
[422049069,1778529044000,-506.0569398,0.00010958,2]
[422049067,1778529044000,-500.0,0.00010958,2]
[422049070,1778529044000,-500.0,0.00010958,2]
[422049072,1778529044000,-500.0,0.00010958,2]
[422049074,1778529044000,-500.0,0.00010958,2]
[422049077,1778529044000,-402.92409283,0.00010958,2]
[422049076,1778529044000,-500.0,0.00010958,2]
[422049073,1778529044000,-500.0,0.00010958,2]
[422049075,1778529044000,-500.0,0.00010958,2]
[422049068,1778529044000,-500.0,0.00010958,2]
[422049078,1778529044000,-1000.0,0.00010958,2]
[422049079,1778529044000,-500.0,0.00010958,2]
[422049080,1778529044000,-500.0,0.00010958,2]
[422049082,1778529044000,-500.0,0.00010958,2]
[422049081,1778529044000,-500.0,0.00010958,2]
[422049021,1778529044000,-500.0,0.00010958,2]
[422049049,1778529044000,-500.0,0.00010958,2]
[422049050,1778529044000,-500.0,0.00010958,2]
[422049062,1778529044000,-500.0,0.00010958,2]
[422049046,1778529044000,-500.0,0.00010958,2]
[422049051,1778529044000,-500.0,0.00010958,2]
[422049018,1778529044000,-553.64603707,0.00010958,2]
[422049020,1778529044000,-500.0,0.00010958,2]
[422049023,1778529044000,-500.0,0.00010958,2]
[422049024,1778529044000,-500.0,0.00010958,2]
[422049025,1778529044000,-500.0,0.00010958,2]
[422049026,1778529044000,-500.0,0.00010958,2]
[422049027,1778529044000,-500.0,0.00010958,2]
[422049037,1778529044000,-540.69839913,0.00010958,2]
[422049039,1778529044000,-500.0,0.00010958,2]
[422049031,1778529044000,-500.0,0.00010958,2]
[422049083,1778529044000,-500.0,0.00010958,2]
[422049035,1778529044000,-500.0,0.00010958,2]
[422049029,1778529044000,-548.35505892,0.00010958,2]
[422049030,1778529044000,-500.0,0.00010958,2]
[422049015,1778529044000,-500.0,0.00010958,2]
[422049047,1778529044000,-500.0,0.00010958,2]
[422049028,1778529044000,-500.0,0.00010958,2]
[422049033,1778529044000,-500.0,0.00010958,2]
[422049036,1778529044000,-500.0,0.00010958,2]
[422049034,1778529044000,-653.03,0.00010958,2]
[422049040,1778529044000,-500.0,0.00010958,2]
[422049041,1778529044000,-500.0,0.00010958,2]
[422049042,1778529044000,-500.0,0.00010958,2]
[422049044,1778529044000,-500.0,0.00010958,2]
[422049032,1778529044000,-500.0,0.00010958,2]
[422049048,1778529044000,-500.0,0.00010958,2]
[422049043,1778529044000,-500.0,0.00010958,2]